fUST/lending_fUST_20250808
["ID","MTS","AMOUNT","RATE_DAILY","PERIOD"]
[377972933,1754639445320,-151.0,0.000248,7]
[377972934,1754639445329,-151.0,0.000248,7]
[377972935,1754639445339,-151.0,0.000248,7]
[377972936,1754639445349,-151.0,0.000248,7]
[377972937,1754639445358,-209.813478,0.000248,7]
[377972938,1754639445367,-248.392447,0.000248,7]
[377972939,1754639445378,-209.813478,0.000248,7]
[377972940,1754639445387,-248.392447,0.000248,7]
[377972941,1754639445397,-187.102865,0.000248,7]
[377972942,1754639445407,-187.102865,0.000248,7]
[377972943,1754639445417,-187.102865,0.000248,7]
[377972944,1754639445427,-151.0,0.000248,7]
[377972945,1754639445437,-151.0,0.000248,7]
[377972946,1754639445447,-151.0,0.000248,7]
[377972947,1754639445457,-187.102865,0.000248,7]
[377972948,1754639445466,-187.102865,0.000248,7]
[377972949,1754639445475,-187.102865,0.000248,7]
[377972950,1754639445487,-1759.0,0.000248,3]
[377972951,1754639445497,-325.0,0.000248,3]
[377972952,1754639445511,-325.0,0.000248,3]
[377972953,1754639445520,-3543.85030388,0.000248,2]
[377972954,1754639445530,-151.0,0.000248,7]
[377972955,1754639445540,-1376.165966,0.000248,7]
[377972956,1754639445551,-1376.165966,0.000248,7]
[377972957,1754639445561,-1376.165966,0.000248,7]
[377972958,1754639445570,-1376.165966,0.000248,7]
[377972959,1754639445581,-1376.165966,0.000248,7]
[377972960,1754639445591,-1376.165966,0.000248,7]
[377972961,1754639445601,-216.5651299,0.000248,3]
[377972962,1754639445612,-312.16666667,0.000248,3]
[377972963,1754639445622,-500.0,0.000248,2]
[377972964,1754639445632,-151.0,0.000248,7]
[377972965,1754639445641,-151.0,0.000248,7]
[377972966,1754639445651,-231.87430077,0.000248,3]
[377972967,1754639445661,-231.87430077,0.000248,7]
[377972968,1754639445670,-160.0,0.000248,3]
[377972969,1754639445680,-160.0,0.000248,7]
[377972970,1754639445689,-151.0,0.000248,7]
[377972971,1754639445699,-168.0,0.00024825,2]
[377972972,1754639445709,-156.655353,0.00024845,7]
[377972973,1754639445718,-156.65536,0.00024845,7]
[377972974,1754639445728,-151.0,0.00024863,7]
[377972975,1754639445738,-151.0,0.00024863,7]
[377972976,1754639445747,-969.399565,0.00024863,7]
[377972977,1754639445757,-475.101484,0.00024863,7]
[377972978,1754639445767,-475.101484,0.00024863,7]
[377972979,1754639445777,-151.0,0.00024863,7]
[377972980,1754639445788,-151.0,0.00024863,7]
[377972981,1754639445798,-151.0,0.0002487,7]
[377972982,1754639445807,-151.0,0.0002487,7]
[377972983,1754639445817,-209.813478,0.0002487,7]
[377972984,1754639445826,-209.813478,0.0002487,7]
[377972985,1754639445835,-5237.38022664,0.0002487,2]
[377972986,1754639445845,-839.34,0.0002487,10]
[377972987,1754639445854,-151.0,0.00024873,7]
[377972988,1754639445864,-151.0,0.00024873,7]
[377972989,1754639445873,-172.56888,0.00024873,7]
[377972990,1754639445883,-151.0,0.00024873,7]
[377972991,1754639445893,-151.0,0.00024873,7]
[377972993,1754639445903,-248.392447,0.00024873,7]
[377972994,1754639445912,-248.392447,0.00024873,7]
[377972995,1754639445922,-151.0,0.00024879,7]
[377972996,1754639445931,-151.0,0.00024879,7]
[377972997,1754639445941,-37732.37,0.0002488,7]
[377972999,1754639445950,-151.0,0.0002488,7]
[377973000,1754639445960,-151.0,0.0002488,7]
[377973001,1754639445969,-151.0,0.0002488,7]
[377973002,1754639445979,-151.0,0.0002488,7]
[377973003,1754639445988,-152.041136,0.0002488,7]
[377973004,1754639445997,-151.0,0.0002488,7]
[377973005,1754639446006,-151.0,0.0002488,7]
[377973007,1754639446016,-969.399565,0.0002488,7]
[377973008,1754639446025,-151.0,0.0002488,7]
[377973009,1754639446035,-151.0,0.0002488,7]
[377973010,1754639446046,-151.0,0.0002488,7]
[377973011,1754639446055,-475.101484,0.0002488,7]
[377973012,1754639446064,-475.101484,0.0002488,7]
[377973013,1754639446074,-151.0,0.0002488,7]
[377973014,1754639446085,-151.0,0.0002488,7]
[377973015,1754639446096,-151.0,0.0002488,7]
[377973016,1754639446106,-151.0,0.0002488,7]
[377973017,1754639446117,-151.0,0.0002488,7]
[377973018,1754639446127,-151.0,0.0002488,7]
[377973019,1754639446137,-151.0,0.0002488,7]
[377973020,1754639446146,-213.954831,0.0002488,7]
[377973021,1754639446155,-209.813478,0.0002488,7]
[377973022,1754639446165,-248.392447,0.0002488,7]
[377973023,1754639446176,-209.813478,0.0002488,7]
[377973025,1754639446185,-248.392447,0.0002488,7]
[377973027,1754639446194,-187.102865,0.0002488,7]
[377973029,1754639446203,-151.0,0.0002488,7]
[377973031,1754639446212,-187.102865,0.0002488,7]
[377973033,1754639446222,-1376.165966,0.0002488,7]
[377973035,1754639446231,-1376.165966,0.0002488,7]
[377973037,1754639446241,-216.5651299,0.0002488,7]
[377973039,1754639446251,-312.16666667,0.0002488,7]
[377973041,1754639446259,-151.0,0.0002488,7]
[377973043,1754639446269,-151.0,0.0002488,7]
[377973045,1754639446278,-160.0,0.0002488,7]
[377973047,1754639446288,-263.54304095,0.00024885,2]
[377973049,1754639446297,-151.0,0.00024885,2]
[377973051,1754639446306,-151.0,0.00024885,2]
[377973052,1754639446316,-226.52495427,0.00024885,2]
[377973053,1754639446326,-297.504678,0.00024888,7]
[377973054,1754639446335,-611.01,0.00024888,10]
[377973055,1754639446344,-151.0,0.00024889,7]
[377973056,1754639446353,-151.0,0.00024889,7]
[377973057,1754639446363,-5237.38022664,0.0002489,2]
[377973058,1754639446373,-151.0,0.00024895,7]
[377973059,1754639446382,-500.0,0.00024897,2]
[377973060,1754639446391,-500.0,0.00024897,2]
[377973061,1754639446400,-500.0,0.00024897,2]
[377973062,1754639446409,-500.0,0.00024897,2]
[377973064,1754639446419,-500.0,0.00024897,2]
[377973065,1754639446429,-500.0,0.00024897,2]
[377973066,1754639446438,-543.82433219,0.00024897,2]
[377973067,1754639446448,-500.0,0.00024897,2]
[377973068,1754639446457,-500.0,0.00024897,2]
[377973069,1754639446466,-4000.0,0.00024898,2]
[377973070,1754639446475,-151.0,0.00024899,7]
[377973071,1754639446483,-151.0,0.00024899,7]
[377973072,1754639446493,-151.0,0.00024899,7]
[377973073,1754639446505,-151.0,0.00024899,7]
[377973074,1754639446515,-151.0,0.00024899,7]
[377973075,1754639446524,-427.23698432,0.000249,2]
[377973076,1754639446534,-500.0,0.000249,2]
[377973077,1754639446543,-151.0,0.000249,7]
[377973078,1754639446552,-151.0,0.000249,7]
[377973079,1754639446562,-151.0,0.000249,7]
[377973080,1754639446570,-151.0,0.000249,7]
[377973081,1754639446579,-151.0,0.000249,7]
[377973082,1754639446588,-151.0,0.000249,7]
[377973083,1754639446597,-152.136427,0.000249,7]
[377973084,1754639446606,-151.0,0.000249,7]
[377973085,1754639446615,-151.0,0.000249,7]
[377973086,1754639446624,-151.0,0.000249,7]
[377973087,1754639446636,-151.0,0.000249,7]
[377973088,1754639446646,-205.302675,0.000249,7]
[377973089,1754639446655,-151.0,0.000249,7]
[377973090,1754639446664,-151.0,0.000249,7]
[377973091,1754639446673,-151.0,0.000249,7]
[377973092,1754639446683,-151.0,0.000249,7]
[377973093,1754639446692,-151.0,0.000249,7]
[377973094,1754639446701,-151.0,0.000249,7]
[377973095,1754639446710,-151.0,0.000249,7]
[377973096,1754639446720,-969.399565,0.000249,7]
[377973097,1754639446732,-969.399565,0.000249,7]
[377973098,1754639446741,-969.399565,0.000249,7]
[377973099,1754639446751,-151.0,0.000249,7]
[377973100,1754639446761,-151.0,0.000249,7]
[377973101,1754639446770,-268.409021,0.000249,7]
[377973102,1754639446779,-475.101484,0.000249,7]
[377973103,1754639446788,-475.101484,0.000249,7]
[377973104,1754639446798,-475.101484,0.000249,7]
[377973105,1754639446807,-475.101484,0.000249,7]
[377973106,1754639446816,-151.0,0.000249,7]
[377973107,1754639446825,-151.0,0.000249,7]
[377973108,1754639446834,-151.0,0.000249,7]
[377973109,1754639446844,-151.0,0.000249,7]
[377973110,1754639446852,-180.503201,0.000249,7]
[377973111,1754639446862,-151.0,0.000249,7]
[377973112,1754639446871,-151.0,0.000249,7]
[377973113,1754639446882,-151.0,0.000249,7]
[377973114,1754639446891,-209.813478,0.000249,7]
[377973115,1754639446900,-248.392447,0.000249,7]
[377973116,1754639446910,-209.813478,0.000249,7]
[377973117,1754639446918,-248.392447,0.000249,7]
[377973118,1754639446927,-187.102865,0.000249,7]
[377973119,1754639446936,-187.102865,0.000249,7]
[377973120,1754639446946,-151.0,0.000249,3]
[377973121,1754639446955,-1376.165966,0.000249,7]
[377973122,1754639446963,-1376.165966,0.000249,7]
[377973123,1754639446972,-672876.751775,0.000249,2]
[377973124,1754639446981,-151.0,0.000249,7]
[377973125,1754639446991,-151.0,0.000249,7]
[377973126,1754639446999,-151.0,0.000249,7]
[377973127,1754639447008,-151.0,0.000249,7]
[377973128,1754639447018,-151.0,0.000249,7]
[377973129,1754639447026,-151.0,0.000249,7]
[377973130,1754639447035,-151.0,0.000249,7]
[377973131,1754639447044,-151.0,0.000249,7]
[377973132,1754639447053,-151.0,0.000249,7]
[377973133,1754639447062,-163.426635,0.000249,7]
[377973134,1754639447071,-500.0,0.00024973,2]
[377973135,1754639447081,-500.0,0.00024973,2]
[377973136,1754639447091,-500.0,0.00024973,2]
[377973137,1754639447101,-306.34530086,0.00024973,2]
[377973138,1754639447110,-510.84698442,0.00024973,2]
[377973139,1754639447123,-501.78642102,0.00024973,2]
[377973140,1754639447134,-500.0,0.00024973,2]
[377973141,1754639447143,-501.04396844,0.00024973,2]
[377973142,1754639447152,-185.07548126,0.00024973,2]
[377973143,1754639447161,-572.54257713,0.00024973,2]
[377973144,1754639447170,-502.38769594,0.00024973,2]
[377973145,1754639447179,-500.0,0.00024973,2]
[377973146,1754639447188,-500.0,0.00024973,2]
[377973147,1754639447197,-500.0,0.00024973,2]
[377973148,1754639447206,-500.0,0.00024973,2]
[377973149,1754639447215,-511.14715494,0.00024973,2]
[377973150,1754639447224,-500.0,0.00024973,2]
[377973151,1754639447234,-500.0,0.00024973,2]
[377973153,1754639447244,-501.60426604,0.00024973,2]
[377973155,1754639447253,-500.0,0.00024973,2]
[377973156,1754639447262,-500.0,0.00024973,2]
[377973157,1754639447271,-500.45341858,0.00024973,2]
[377973158,1754639447281,-151.0,0.00024973,7]
[377973159,1754639447291,-252.017933,0.00024973,7]
[377973160,1754639447300,-248.392447,0.00024973,7]
[377973161,1754639447310,-248.392447,0.00024973,7]
[377973162,1754639447319,-151.0,0.0002499,7]
[377973163,1754639447329,-151.0,0.0002499,7]
[377973164,1754639447338,-154.737795,0.0002499,7]
[377973165,1754639447348,-151.0,0.0002499,7]
[377973166,1754639447357,-151.0,0.0002499,7]
[377973167,1754639447367,-151.0,0.0002499,7]
[377973168,1754639447376,-151.0,0.0002499,7]
[377973169,1754639447386,-151.0,0.0002499,7]
[377973170,1754639447396,-151.0,0.0002499,7]
[377973171,1754639447405,-151.0,0.0002499,7]
[377973172,1754639447415,-151.0,0.0002499,7]
[377973173,1754639447424,-151.0,0.0002499,7]
[377973174,1754639447434,-151.0,0.0002499,7]
[377973175,1754639447443,-151.0,0.0002499,7]
[377973176,1754639447453,-209.813478,0.0002499,7]
[377973177,1754639447462,-248.392447,0.0002499,7]
[377973178,1754639447471,-209.813478,0.0002499,7]
[377973179,1754639447481,-248.392447,0.0002499,7]
[377973180,1754639447490,-187.102865,0.0002499,7]
[377973181,1754639447499,-187.102865,0.0002499,7]
[377973182,1754639447512,-1376.165966,0.0002499,7]
[377973183,1754639447522,-1376.165966,0.0002499,7]
[377973184,1754639447531,-41899.0418131,0.0002499,2]
[377973185,1754639447540,-151.0,0.0002499,7]
[377973186,1754639447550,-233.765904,0.0002499,7]
[377973187,1754639447559,-151.0,0.0002499,7]
[377973188,1754639447568,-1066.0568079,0.00025,2]
[377973189,1754639447577,-208.15728733,0.00025,2]
[377973190,1754639447589,-9611.0687433,0.00025,2]
[377973191,1754639447608,-359.33083189,0.00025,2]
[377973192,1754639447629,-500.0,0.00025,2]
[377973193,1754639447639,-110027.18632284,0.00025,2]
[377973194,1754639447650,-5131.76704801,0.00025,10]
[377973195,1754639447660,-600.0,0.00025,2]
[377973196,1754639447671,-16035.16493018,0.00025,2]
[377973197,1754639447681,-2624.88191732,0.00025,2]
[377973198,1754639447691,-153.0,0.00025,2]
[377973199,1754639447701,-8327.0,0.00025,2]
[377973200,1754639447711,-20000.0,0.00025,5]
[377973201,1754639447722,-39188.63683375,0.00025,2]
[377973202,1754639447732,-129306.60087539,0.00025,7]
[377973203,1754639447742,-4000.0,0.00025,7]
[377973204,1754639447752,-200.0,0.00025,7]
[377973205,1754639447762,-151.0,0.00025,7]
[377973206,1754639447773,-151.0,0.00025,7]
[377973207,1754639447783,-151.0,0.00025,7]
[377973208,1754639447792,-151.0,0.00025,7]
[377973209,1754639447801,-151.0,0.00025,7]
[377973210,1754639447811,-151.0,0.00025,7]
[377973211,1754639447822,-151.0,0.00025,7]
[377973212,1754639447831,-151.0,0.00025,7]
[377973213,1754639447840,-151.0,0.00025,7]
[377973214,1754639447850,-151.0,0.00025,7]
[377973215,1754639447859,-151.0,0.00025,7]
[377973216,1754639447869,-151.0,0.00025,7]
[377973217,1754639447878,-151.0,0.00025,7]
[377973218,1754639447889,-151.0,0.00025,7]
[377973219,1754639447898,-151.0,0.00025,7]
[377973220,1754639447908,-151.0,0.00025,7]
[377973221,1754639447918,-151.0,0.00025,7]
[377973222,1754639447928,-209.999934,0.00025,7]
[377973223,1754639447938,-195.923726,0.00025,7]
[377973224,1754639447948,-156.127384,0.00025,7]
[377973225,1754639447957,-969.399565,0.00025,7]
[377973226,1754639447967,-969.399565,0.00025,7]
[377973227,1754639447977,-969.399565,0.00025,7]
[377973228,1754639447987,-969.399565,0.00025,7]
[377973229,1754639447996,-969.399565,0.00025,7]
[377973230,1754639448006,-969.399565,0.00025,7]
[377973231,1754639448141,-969.399565,0.00025,7]
[377973232,1754639448152,-969.399565,0.00025,7]
[377973233,1754639448162,-151.0,0.00025,7]
[377973234,1754639448172,-244.502984,0.00025,7]
[377973235,1754639448181,-475.101484,0.00025,7]
[377973236,1754639448195,-475.101484,0.00025,7]
[377973237,1754639448205,-475.101484,0.00025,7]
[377973238,1754639448214,-475.101484,0.00025,7]
[377973239,1754639448224,-475.101484,0.00025,7]
[377973240,1754639448233,-475.101484,0.00025,7]
[377973241,1754639448243,-475.101484,0.00025,7]
[377973242,1754639448252,-475.101484,0.00025,7]
[377973243,1754639448262,-151.0,0.00025,7]
[377973244,1754639448276,-151.0,0.00025,7]
[377973245,1754639448288,-151.0,0.00025,7]
[377973246,1754639448298,-151.0,0.00025,7]
[377973247,1754639448307,-180.815608,0.00025,7]
[377973248,1754639448317,-151.0,0.00025,7]
[377973249,1754639448327,-151.0,0.00025,7]
[377973250,1754639448337,-151.0,0.00025,7]
[377973251,1754639448347,-151.0,0.00025,7]
[377973252,1754639448356,-151.0,0.00025,7]
[377973253,1754639448365,-151.0,0.00025,7]
[377973254,1754639448375,-151.0,0.00025,7]
[377973255,1754639448386,-151.0,0.00025,7]
[377973256,1754639448396,-180.568691,0.00025,7]
[377973257,1754639448406,-151.0,0.00025,7]
[377973258,1754639448415,-151.0,0.00025,7]
[377973259,1754639448425,-151.0,0.00025,7]
[377973260,1754639448435,-151.0,0.00025,7]
[377973261,1754639448444,-209.813478,0.00025,7]
[377973262,1754639448454,-209.813478,0.00025,7]
[377973263,1754639448463,-209.813478,0.00025,7]
[377973264,1754639448472,-209.813478,0.00025,7]
[377973265,1754639448482,-248.392447,0.00025,7]
[377973266,1754639448491,-248.392447,0.00025,7]
[377973267,1754639448501,-248.392447,0.00025,7]
[377973268,1754639448511,-248.392447,0.00025,7]
[377973269,1754639448524,-209.813478,0.00025,7]
[377973270,1754639448533,-209.813478,0.00025,7]
[377973271,1754639448543,-209.813478,0.00025,7]
[377973272,1754639448553,-209.813478,0.00025,7]
[377973273,1754639448563,-248.392447,0.00025,7]
[377973274,1754639448572,-248.392447,0.00025,7]
[377973275,1754639448581,-248.392447,0.00025,7]
[377973276,1754639448590,-248.39245,0.00025,7]
[377973277,1754639448601,-187.102865,0.00025,7]
[377973278,1754639448610,-187.102865,0.00025,7]
[377973279,1754639448620,-187.102865,0.00025,7]
[377973280,1754639448629,-187.102865,0.00025,7]
[377973281,1754639448639,-187.102865,0.00025,7]
[377973282,1754639448649,-187.102865,0.00025,7]
[377973283,1754639448658,-187.102865,0.00025,7]
[377973284,1754639448668,-187.102874,0.00025,7]
[377973285,1754639448677,-1376.165966,0.00025,7]
[377973286,1754639448687,-1376.165966,0.00025,7]
[377973287,1754639448696,-1376.165966,0.00025,7]
[377973288,1754639448706,-1376.165966,0.00025,7]
[377973289,1754639448717,-1376.165966,0.00025,7]
[377973290,1754639448727,-1376.165966,0.00025,7]
[377973291,1754639448737,-1376.165966,0.00025,7]
[377973292,1754639448747,-1376.165958,0.00025,7]
[377973293,1754639448757,-312.16666667,0.00025,7]
[377973294,1754639448766,-151.0,0.00025,7]
[377973295,1754639448776,-151.0,0.00025,7]
[377973296,1754639448786,-151.0,0.00025,7]
[377973297,1754639448796,-151.0,0.00025,7]
[377973298,1754639448806,-151.0,0.00025,7]
[377973299,1754639448815,-151.0,0.00025,7]
[377973300,1754639448825,-151.0,0.00025,7]
[377973301,1754639448834,-151.0,0.00025,7]
[377973302,1754639448844,-154.34323,0.00025,7]
[377973303,1754639448853,-151.0,0.00025,7]
[377973304,1754639448863,-151.0,0.00025,7]
[377973305,1754639448873,-151.0,0.00025,7]
[377973306,1754639448884,-255.400411,0.00025,7]
[377973307,1754639448894,-203.507431,0.00025,2]
[377973308,1754639448904,-160.0,0.0002501,2]
[377973309,1754639448915,-500.0,0.00025074,2]
[377973310,1754639448924,-150.0,0.00025123,2]
[377973311,1754639448934,-151.0,0.00025126,7]
[377973312,1754639448943,-162.280278,0.00025126,7]
[377973313,1754639448953,-151.0,0.0002514,7]
[377973314,1754639448962,-336.0,0.00025151,15]
[377973315,1754639448972,-3515.72431072,0.00025164,2]
[377973316,1754639448981,-209.813478,0.00025164,7]
[377973317,1754639448990,-209.813475,0.00025164,7]
[377973318,1754639449000,-5237.38022664,0.00025246,2]
[377973319,1754639449009,-969.399565,0.00025256,7]
[377973320,1754639449019,-969.399565,0.00025256,7]
[377973321,1754639449029,-475.101484,0.00025256,7]
[377973322,1754639449039,-475.101484,0.00025256,7]
[377973323,1754639449048,-151.0,0.00025256,7]
[377973324,1754639449058,-151.0,0.00025321,7]
[377973325,1754639449068,-500.0,0.00025348,2]
[377973326,1754639449078,-3768.0,0.00025363,2]
[377973327,1754639449087,-900.0,0.00025469,3]
[377973328,1754639449098,-1943.82885266,0.0002547,2]
[377973329,1754639449108,-151.0,0.0002547,7]
[377973330,1754639449117,-1000.0,0.000255,2]
[377973331,1754639449127,-325.35800499,0.00025521,2]
[377973332,1754639449137,-501.12299903,0.00025521,2]
[377973333,1754639449147,-1000.0,0.00025521,2]
[377973334,1754639449157,-157.34979334,0.00025521,2]
[377973335,1754639449166,-1000.0,0.00025521,2]
[377973336,1754639449176,-1000.0,0.00025521,2]
[377973337,1754639449185,-502.37381793,0.00025521,2]
[377973338,1754639449195,-500.75183881,0.00025521,2]
[377973339,1754639449204,-1011.55871125,0.00025521,2]
[377973340,1754639449213,-1000.0,0.00025521,2]
[377973341,1754639449224,-500.0,0.00025521,2]
[377973342,1754639449234,-260.0,0.00025558,2]
[377973343,1754639449243,-500.0,0.00025613,2]
[377973344,1754639449253,-502.60236374,0.00025613,2]
[377973345,1754639449262,-500.0,0.00025622,2]
[377973346,1754639449272,-179.74835231,0.00025631,2]
[377973347,1754639449282,-151.0,0.00025631,7]
[377973348,1754639449291,-308.73,0.0002568,7]
[377973349,1754639449300,-240.12,0.0002568,7]
[377973350,1754639449310,-168.0,0.00025705,2]
[377973351,1754639449320,-1000.0,0.000258,15]
[377973352,1754639449330,-168.0,0.00025805,2]
[377973353,1754639449340,-160.0,0.00025894,3]
[377973354,1754639449351,-500.0,0.00025896,2]
[377973355,1754639449360,-520.17675039,0.00026,2]
[377973356,1754639449369,-19900.0,0.00026,2]
[377973357,1754639449381,-969.399565,0.00026,7]
[377973358,1754639449390,-969.399564,0.00026,7]
[377973359,1754639449400,-475.101484,0.00026,7]
[377973360,1754639449409,-475.101474,0.00026,7]
[377973361,1754639449418,-151.0,0.00026,7]
[377973362,1754639449429,-500.83691608,0.00026,2]
[377973363,1754639449449,-500.0,0.00026,2]
[377973364,1754639449466,-500.0,0.00026,2]
[377973365,1754639449476,-500.0,0.00026,2]
[377973366,1754639449486,-500.0,0.00026,2]
[377973367,1754639449495,-500.0,0.00026,2]
[377973368,1754639449505,-500.0,0.00026,2]
[377973369,1754639449514,-627.30286571,0.00026,2]
[377973370,1754639449527,-500.0,0.00026,2]
[377973371,1754639449537,-500.0,0.00026,2]
[377973372,1754639449546,-500.0,0.00026,2]
[377973373,1754639449556,-500.0,0.00026,2]
[377973374,1754639449565,-500.0,0.00026,2]
[377973375,1754639449575,-500.0,0.00026,2]
[377973376,1754639449584,-500.0,0.00026,2]
[377973377,1754639449593,-500.0,0.00026,2]
[377973378,1754639449603,-5237.38022664,0.00026058,2]
[377973379,1754639449612,-1500.0,0.00026068,2]
[377973380,1754639449622,-1500.0,0.00026068,2]
[377973381,1754639449632,-360.0,0.00026106,2]
[377973382,1754639449641,-464.52,0.00026133,3]
[377973383,1754639449651,-191.10180676,0.0002616,2]
[377973384,1754639449661,-1000.0,0.0002616,2]
[377973385,1754639449671,-500.0,0.0002617,2]
[377973386,1754639449680,-10000.0,0.000262,14]
[377973387,1754639449689,-181.60193922,0.00026206,2]
[377973388,1754639449699,-150.0,0.00026265,2]
[377973389,1754639449709,-420.0,0.00026283,2]
[377973390,1754639449718,-160.0,0.00026401,4]
[377973391,1754639449728,-503.68876021,0.00026444,2]
[377973392,1754639449738,-200.0,0.00026459,15]
[377973393,1754639449747,-200.0,0.00026459,15]
[377973394,1754639449758,-300.0,0.00026459,15]
[377973395,1754639449768,-14798.40241536,0.000265,2]
[377973396,1754639449777,-541.56782758,0.00026548,2]
[377973397,1754639449787,-1009.8993052,0.00026548,2]
[377973398,1754639449796,-509.71586117,0.00026548,2]
[377973399,1754639449805,-1000.0,0.00026548,2]
[377973400,1754639449815,-1000.0,0.00026548,2]
[377973401,1754639449824,-1000.0,0.00026548,2]
[377973402,1754639449834,-506.52330765,0.00026548,2]
[377973403,1754639449844,-1015.00907503,0.00026548,2]
[377973404,1754639449853,-501.42733419,0.00026548,2]
[377973405,1754639449863,-501.18156412,0.00026548,2]
[377973406,1754639449872,-500.0,0.00026548,2]
[377973407,1754639449881,-1000.0,0.00026548,2]
[377973408,1754639449891,-150.59680682,0.00026562,7]
[377973409,1754639449901,-2000.0,0.00026616,2]
[377973410,1754639449911,-460.0,0.00026654,2]
[377973411,1754639449920,-1500.0,0.00026708,2]
[377973412,1754639449930,-3543.85030386,0.00026709,2]
[377973413,1754639449940,-240.12,0.00026907,7]
[377973414,1754639449950,-160.0,0.00026907,5]
[377973415,1754639449959,-3515.72431072,0.00026918,6]
[377973416,1754639449969,-218.313758,0.00026973,2]
[377973417,1754639449978,-500.0,0.00026973,2]
[377973418,1754639449988,-500.0,0.00026973,2]
[377973419,1754639449998,-500.0,0.00026973,2]
[377973420,1754639450007,-150.0,0.00026973,2]
[377973421,1754639450016,-500.0,0.00026973,2]
[377973422,1754639450025,-500.0,0.00026973,2]
[377973423,1754639450035,-150.82286057,0.00026973,2]
[377973424,1754639450044,-150.0,0.00026973,2]
[377973425,1754639450053,-500.0,0.00026973,2]
[377973426,1754639450063,-500.0,0.00026973,2]
[377973427,1754639450073,-502.24343094,0.00026973,2]
[377973428,1754639450083,-501.70765911,0.00026973,2]
[377973429,1754639450093,-500.0,0.00026973,2]
[377973430,1754639450102,-500.0,0.00026973,2]
[377973431,1754639450112,-500.0,0.00026973,2]
[377973432,1754639450122,-15712.1406799,0.0002699,2]
[377973433,1754639450133,-77074.30260424,0.00027,2]
[377973434,1754639450143,-11092.08012193,0.00027,2]
[377973435,1754639450153,-17521.0,0.00027,2]
[377973436,1754639450162,-200.0,0.0002702,17]
[377973437,1754639450171,-1500.0,0.00027096,2]
[377973438,1754639450181,-500.0,0.00027096,2]
[377973439,1754639450190,-2500.0,0.00027164,2]
[377973440,1754639450200,-12454.86403125,0.000272,7]
[377973441,1754639450210,-10000.0,0.000272,14]
[377973442,1754639450219,-560.0,0.00027202,2]
[377973443,1754639450229,-1597.25999832,0.00027256,2]
[377973444,1754639450239,-150.0,0.00027373,2]
[377973445,1754639450248,-150.0,0.00027373,2]
[377973446,1754639450257,-500.0,0.00027373,2]
[377973447,1754639450267,-500.0,0.00027373,2]
[377973448,1754639450277,-5237.38022664,0.00027387,2]
[377973449,1754639450286,-196.79920621,0.0002739,2]
[377973450,1754639450295,-10474.7604533,0.0002739,2]
[377973451,1754639450305,-1000.0,0.00027397,5]
[377973452,1754639450314,-1000.0,0.00027397,5]